Cogmind - Beta 15 @@@ ROGUE MODE // 2025.06.29 @ 01:39:32 Player: Irontygre Result: Destroyed by 40-KHG(E) with Barrage Gun Performance ------------- Evolutions (0) 0 Regions Visited (3) 600 Robots Destroyed (18) 90 Value Destroyed (405) 405 Prototype IDs (0) 0 Alien Tech Used (0) 0 Bonus (300) 300 TOTAL SCORE: 1395 Bonus ------- Registered with UFD 300 Cogmind --------- Core Integrity 0/250 Matter 222/300 Energy 28/100 System Corruption 0% Temperature Hot (239) Movement Walking (260) Ox2 Location -9/Scraptown Parts ------- > --- POWER (1) -------- (None) > --- PROPULSION (2) --- Aluminum Leg > --- UTILITY (2) ------ Large Storage Unit > --- WEAPON (2) ------- Plasma Cutter > --- INVENTORY (15) --- Scrap Suit Small Storage Unit Sensor Array Targeting Computer Improved Particle Charger System Restoration Module CPS Tube (2) Peak State ------------ > --- POWER ------------ Ion Engine > --- PROPULSION ------- Aluminum Leg Aluminum Leg > --- UTILITY ---------- Large Storage Unit Visual Processing Unit > --- WEAPON ----------- Plasma Cannon Heavy Assault Rifle > --- INVENTORY -------- Ion Engine Aluminum Leg Scrap Suit Small Storage Unit Sensor Array Targeting Computer Improved Particle Charger System Restoration Module EM Pulse Gun Phase Cannon Plasma Cutter CPS Tube [Rating: 15] Favorites ----------- Power Ion Engine Engine Ion Engine Propulsion Aluminum Leg Leg Aluminum Leg Wheel Wheel Utility Visual Processing Unit Device Heat Sink Storage Large Storage Unit Processor Visual Processing Unit Weapon Heavy Assault Rifle Energy Gun Heavy EM Pulse Gun Energy Cannon Plasma Cannon Ballistic Gun Heavy Assault Rifle Ballistic Cannon Battle Cannon Special Weapon Mining Laser Build | -11 -10 -10 -9 ------- Run | Yrd Mat Sub Scr Slots Evolved . | . . . . Power . | . . . . Propulsion . | . . . . Utility . | . . . . Weapon . | . . . . Parts Attached 25 | 11 3 2 9 Power 3 | 1 1 . 1 Engine 3 | 1 1 . 1 Core . | . . . . Reactor . | . . . . Propulsion 5 | 4 . . 1 Treads . | . . . . Leg 3 | 2 . . 1 Wheel 2 | 2 . . . Hover . | . . . . Flight . | . . . . Utility 6 | 2 2 . 2 Device 2 | 2 . . . Storage 3 | . 1 . 2 Processor 1 | . 1 . . Hackware . | . . . . Protection . | . . . . Artifact . | . . . . Weapon 11 | 4 . 2 5 Energy Gun 2 | 1 . . 1 Energy Cannon 2 | . . . 2 Ballistic Gun 4 | 2 . 1 1 Ballistic Cannon 1 | . . 1 . Launcher . | . . . . Special Weapon 2 | 1 . . 1 Impact Weapon . | . . . . Slashing Weapon . | . . . . Piercing Weapon . | . . . . Special Melee Weapon . | . . . . Unidentified Prototypes . | . . . . Parts Lost 10 | . . . 10 Power 2 | . . . 2 Propulsion 2 | . . . 2 Utility 1 | . . . 1 Weapon 5 | . . . 5 Highest Loss Streak 10 | . . . 10 To Critical Strikes 3 | . . . 3 Average Backups 8 | 3 5 7 9 Power . | . 1 1 . Propulsion 1 | 1 . 1 1 Utility 3 | . 2 4 4 Weapon 2 | 1 1 1 2 Tool/Special . | . . . . Unused Backups 16 | . 4 1 11 Power 1 | . 1 . . Propulsion 2 | . 2 . . Utility 8 | . 1 . 7 Weapon 3 | . . 1 2 Tool/Special 2 | . . . 2 Average Slot Usage (%) 99 | . 100 100 99 Engine 13 | . 14 14 13 Leg 27 | . 28 28 27 Device 1 | . 17 . . Storage 13 | . 5 14 14 Processor 12 | . 5 14 13 Energy Gun 12 | . 14 7 12 Ballistic Gun 13 | . 14 14 13 Ballistic Cannon 1 | . . 6 . Peak Build Rating 15 | 7 8 11 15 Average Rating 10 | 4 7 9 11 On Entrance 6 | . 7 8 11 Naked Turns . | . . . . Heaviest Build 35 | 8 13 15 35 Greatest Support 20 | 20 20 20 20 Greatest Overweight (x) 2 | . . . 2 Average Overweight (x) . | . . . . Largest Inventory Capacity 15 | 5 8 8 15 Average Capacity 11 | 5 6 8 13 Most Carried 14 | 5 8 8 14 Average Carried 8 | 3 5 7 9 Final Capacity 15 | 5 8 8 15 Final Carried 8 | 5 8 8 8 Class Distribution -------------------- 100% | Mutant Dominant Class ---------------- Mutant | -10/Materials Mutant | -10/Subcaves Mutant | -9/Scraptown Resources | -11 -10 -10 -9 ----------- Run | Yrd Mat Sub Scr Matter Collected 496 | 360 34 52 50 Remotely . | . . . . Salvage Created 618 | 104 216 92 206 Parts 50 | 12 16 7 15 Haulers Intercepted . | . . . . Recyclers Shooed . | . . . . Parts Field Recycled . | . . . . Retrieved Matter . | . . . . Parts Self-Destructed 13 | . . 13 . Prevented . | . . . . Kills | -11 -10 -10 -9 ------- Run | Yrd Mat Sub Scr Combat Hostiles Destroyed 10 | 1 5 2 2 Guns 4 | 1 1 1 1 Cannons 2 | . . 1 1 AOE 4 | . 4 . . Classes Destroyed 8 | 3 3 . 2 Worker 1 | 1 . . . Tunneler 4 | 4 . . . Recycler 1 | . 1 . . Watcher 2 | . 2 . . Swarmer 3 | . 3 . . Grunt 5 | 1 2 2 . Scientist 1 | . . . 1 Elite 2 | . . . 2 Best Kill Streak 7 | 4 7 2 2 Combat Bots Only 5 | 1 5 2 1 Max Kills in Single Turn 5 | 1 5 1 1 Gunslinging . | . . . . Exploded 4 | . 4 . . Melee . | . . . . Uniques/NPCs Destroyed . | . . . . Combat | -11 -10 -10 -9 -------- Run | Yrd Mat Sub Scr Hostile Shots Fired 98 | 2 13 2 81 Missed 34 | 1 4 . 29 Hits 64 | 1 9 2 52 Projectile 64 | 1 9 2 52 Critical Strikes 8 | . . . 8 Damage Taken 1246 | 12 84 71 1079 Core 262 | . 19 24 219 Absorbed by Shields . | . . . . Core Remaining (%) 100 | 100 . . . Volleys Fired 51 | 14 9 4 24 Largest 2 | 2 2 2 2 Hottest 125 | 100 60 58 125 Shots Fired 86 | 24 18 8 36 Gun 67 | 20 18 4 25 Cannon 14 | . . 4 10 Launcher . | . . . . Special 5 | 4 . . 1 Kinetic 43 | 10 9 8 16 Thermal 15 | 4 . . 11 Explosive . | . . . . Electromagnetic 28 | 10 9 . 9 Robot Hit Streak 8 | 8 2 4 8 Robot Miss Streak 4 | 4 4 1 2 Penetration Max . | . . . . Secondary Targets . | . . . . Shots Hit Robots 49 | 12 6 5 26 Core Hits 27 | 7 10 2 8 Critical Kills 1 | . . . 1 Critical Parts Destroyed 1 | . . . 1 Critical Strikes 3 | . . . 3 Destroy 2 | . . . 2 Corrupt 1 | . . . 1 Melee Attacks . | . . . . Impact . | . . . . Slashing . | . . . . Piercing . | . . . . Sneak Attacks . | . . . . Combat Hostiles . | . . . . Follow-up Attacks . | . . . . Damage Inflicted 919 | 143 257 93 426 Guns 440 | 95 64 26 255 Cannons 238 | . . 67 171 Explosions 183 | . 183 . . Melee . | . . . . Ramming 10 | . 10 . . Kinetic 298 | 15 16 93 174 Thermal 402 | 48 183 . 171 Explosive . | . . . . Electromagnetic 209 | 80 48 . 81 Impact . | . . . . Slashing . | . . . . Piercing . | . . . . Highest Corruption . | . . . . Average Corruption . | . . . . Corruption Purged . | . . . . Corruption Blocked . | . . . . Overload Shots . | . . . . Overflow Damage . | . . . . Projectiles . | . . . . Explosions . | . . . . Melee . | . . . . Knockbacks 2 | . . 2 . Impact . | . . . . Kinetic 2 | . . 2 . Secondary . | . . . . Self-Inflicted Damage . | . . . . Shots . | . . . . Rammed . | . . . . Targets Rammed 2 | . 2 . . Kicked 2 | . 2 . . Crushed . | . . . . Highest Temperature 338 | 26 . . 338 Average Temperature 95 | 15 . . 104 Received Heat Transfer 27 | 6 9 12 . Siege Activations . | . . . . Martial Activations . | . . . . Shielding Activations . | . . . . Robots Disrupted . | . . . . Combat Hostiles . | . . . . Robots Corrupted . | . . . . Combat Hostiles . | . . . . Parts Fried . | . . . . Impact Corruptions . | . . . . Robots Melted . | . . . . Combat Hostiles . | . . . . Parts Melted . | . . . . Heat Transferred 436 | 100 150 . 186 Parts Sabotaged . | . . . . Parts Stolen . | . . . . Parts Stripped . | . . . . Power Chain Reactions 1 | . 1 . . Alert | -11 -10 -10 -9 ------- Run | Yrd Mat Sub Scr Maximum Alert Level . | . . . . Low Security (%) 100 | 100 100 . . Level 1 . | . . . . Level 2 . | . . . . Level 3 . | . . . . Level 4 . | . . . . Level 5 . | . . . . High Security . | . . . . Max Security . | . . . . Peak Influence 150 | 20 150 . . Initial . | . . . . Average 30 | 3 49 . . Influence Increases 257 | 45 162 50 . Destroy 0b10 Robot/C 160 | 20 100 40 . Destroy 0b10 Robot/NC 40 | 25 15 . . Destroy Leader 34 | . 24 10 . Successful Hack 5 | . 5 . . Destroy Structure 3 | . 3 . . Lose Combat Pursuer 15 | . 15 . . Influence Decreases 257 | 45 82 120 10 Entered New Map 49 | . . 39 10 Time Decay 208 | 45 82 81 . Squads Dispatched . | . . . . Investigation . | . . . . Extermination . | . . . . Reinforcement . | . . . . Assault . | . . . . Garrison . | . . . . Intercept . | . . . . Searches Triggered . | . . . . Construction Impeded . | . . . . Haulers Reinforced . | . . . . Active Scanning Responses . | . . . . Cargo Convoy Interrupts . | . . . . Stealth | -11 -10 -10 -9 --------- Run | Yrd Mat Sub Scr Distress Signals 1 | . 1 . . Communications Jammed . | . . . . Distress Signals . | . . . . Times Spotted 15 | 1 8 1 5 Peak Tracking Total 8 | 1 6 1 8 Tactical Retreats 1 | . 1 . . Traps | -11 -10 -10 -9 ------- Run | Yrd Mat Sub Scr Traps Triggered 1 | . . 1 . Indirectly . | . . . . Trap Hack Attempts . | . . . . Triggered . | . . . . Disarmed . | . . . . Reprogrammed . | . . . . Reused . | . . . . Traps Extracted . | . . . . Installed . | . . . . Triggered . | . . . . Machines | -11 -10 -10 -9 ---------- Run | Yrd Mat Sub Scr Machines Disabled 2 | . . . 2 Max in Single Turn 1 | . . . 1 Machines Repaired . | . . . . Machines Dismantled 1 | . . . 1 Machines Sabotaged . | . . . . Overloaded Fab Kills . | . . . . Hacking | -11 -10 -10 -9 --------- Run | Yrd Mat Sub Scr Machines Accessed 7 | . 2 . 5 Terminals 1 | . 1 . . Fabricators . | . . . . Repair Stations . | . . . . Recycling Units 1 | . 1 . . Scanalyzers . | . . . . Garrison Access . | . . . . Total Hacks 47 | . 7 . 40 Successful 46 | . 6 . 40 Failed 1 | . 1 . . Catastrophic . | . . . . Database Lockouts . | . . . . Manual 5 | . 1 . 4 Terminals 5 | . 5 . . Fabricators . | . . . . Repair Stations . | . . . . Recycling Units 2 | . 2 . . Scanalyzers . | . . . . Garrison Access . | . . . . Terminal Hacks 44 | . 4 . 40 Record 41 | . 1 . 40 Terminal Index 1 | . 1 . . Alert Level 1 | . 1 . . Zone Layout 1 | . 1 . . Fabricator Hacks . | . . . . Repair Station Hacks . | . . . . Recycling Unit Hacks 2 | . 2 . . Report Inventory 1 | . 1 . . Retrieve Components 1 | . 1 . . Scanalyzer . | . . . . Garrison Access Hacks . | . . . . Unauthorized Hacks . | . . . . Terminals . | . . . . Fabricators . | . . . . Repair Stations . | . . . . Recycling Units . | . . . . Scanalyzers . | . . . . Garrison Access . | . . . . Data Cores Recovered . | . . . . Used . | . . . . Hacking Detections 1 | . 1 . . Full Trace Events . | . . . . Feedback Events . | . . . . Feedback Blocked . | . . . . Robot Schematics Acquired . | . . . . Robots Built . | . . . . Authchips . | . . . . Time . | . . . . Total Robot Build Rating . | . . . . Part Schematics Acquired . | . . . . Parts Built . | . . . . Authchips . | . . . . Time . | . . . . Total Part Build Rating . | . . . . Parts Repaired . | . . . . Time . | . . . . Parts Recycled . | . . . . Recycled Matter . | . . . . Retrieved Matter . | . . . . Retrieved Components 2 | . 2 . . Parts Scanalyzed . | . . . . Part Schematics Acquired . | . . . . Parts Damaged . | . . . . Bothacking | -11 -10 -10 -9 ------------ Run | Yrd Mat Sub Scr Used RIF Installer . | . . . . Robots Hacked . | . . . . Non-combat . | . . . . Combat . | . . . . Robot Hacks Applied . | . . . . Relay Couplers Released . | . . . . Fabnet Peak Effective % . | . . . . Robots Rewired . | . . . . Allies Hacked . | . . . . Hacks Repelled . | . . . . Allies | -11 -10 -10 -9 -------- Run | Yrd Mat Sub Scr Total Allies . | . . . . Largest Group . | . . . . Highest-Rated Group . | . . . . Highest-Rated Ally . | . . . . Total Orders . | . . . . Ally Attacks . | . . . . Total Damage . | . . . . Kills . | . . . . Allies Corrupted . | . . . . Allies Melted . | . . . . Intel | -11 -10 -10 -9 ------- Run | Yrd Mat Sub Scr Active Infowar (turns) 3115 | 22 333 384 2376 Optics 2885 | . 125 384 2376 Seismic 230 | 22 208 . . Robot Analysis Total . | . . . . Derelict Logs Recovered 1 | . . 1 . Drone Launches . | . . . . Drone Recoveries . | . . . . Exploration | -11 -10 -10 -9 ------------- Run | Yrd Mat Sub Scr Turns Passed 3352 | 239 333 384 2396 Spaces Moved 2137 | 206 239 303 1389 Core 57 | 57 . . . Treads . | . . . . Legs 1958 | 27 239 303 1389 Wheels 122 | 122 . . . Hover . | . . . . Flight . | . . . . Fastest Speed 50 | 50 120 120 120 Average Speed 144 | 76 120 120 164 Slowest Speed 260 | 120 120 120 260 Overloaded Moves . | . . . . Propulsion Burnouts . | . . . . Robots Hopped . | . . . . Potential Cave-ins . | . . . . Cave-ins Triggered . | . . . . Exploration Rate (%) 32 | 6 30 22 73 Regions Visited 3 Branch Regions 2 Pre-discovered Areas 1 | . . 1 . Known Exits Taken . | . . . . Unknown Exits Taken 3 | 1 1 1 . Scrap Searched 3 | . . . 3 Spaces Dug 1 | 1 . . . Terrain Destroyed 7 | 1 3 . 3 Melee . | . . . . Projectile 4 | 1 . . 3 AOE 3 | . 3 . . Terrain Rammed . | . . . . Walls Destroyed . | . . . . Machines Disabled . | . . . . Actions | -11 -10 -10 -9 --------- Run | Yrd Mat Sub Scr Total 2301 | 258 271 314 1458 Wait . | . . . . Move 2134 | 205 238 302 1389 Hop . | . . . . Pick Up 45 | 16 11 3 15 Fast Attach . | . . . . Attach 19 | 11 . . 8 Detach 4 | 4 . . . Swap 14 | 4 3 2 5 Drop 25 | 4 8 3 10 Fire 51 | 14 9 4 24 Melee . | . . . . Ram . | . . . . Kick 2 | . 2 . . Crush . | . . . . Escape Stasis . | . . . . Rewire 4 | . . . 4 Trap . | . . . . Miscellaneous 3 | . . . 3 Route ------- -11/Scrapyard -10/Materials (discovered 2 exits: [*Min] / [*Sub]) -10/Subcaves (discovered 2 exits: [*Mat] / *Scr) -9/Scraptown (discovered 1 exit: [*Fac]) History --------- Turn | Location | Event 2 | -11/Scrapyard | Met Revision 17 77 | -11/Scrapyard | Discovered new exit (range 8) 240 | -11/Scrapyard | Entered Materials 241 | -10/Materials | Met a group of wandering Federalists 317 | -10/Materials | Build established: Mutant 365 | -10/Materials | Discovered new exit (range 16) 562 | -10/Materials | Discovered new exit (range 7) 573 | -10/Materials | Entered Subcaves 574 | -10/Subcaves | Continued accompanying wandering Federalists (6) 618 | -10/Subcaves | Shifting Twisted Machinery released Battle Rifle 676 | -10/Subcaves | Shifting Twisted Machinery released Mak. Light Armor Plating 764 | -10/Subcaves | Learned location of Zion (-7) 873 | -10/Subcaves | Discovered new exit (range 14) 957 | -10/Subcaves | Entered Scraptown 1271 | -9/Scraptown | Visited Science Testing Area 1329 | -9/Scraptown | Visited Spacefarers 1890 | -9/Scraptown | Discovered new exit (range 7) 1985 | -9/Scraptown | Visited The Evicted 2061 | -9/Scraptown | Visited Awakened 2161 | -9/Scraptown | Visited UFD Registry 2161 | -9/Scraptown | Registered with UFD as "Thundergrid" 2224 | -9/Scraptown | Visited Cyclists 2260 | -9/Scraptown | Entered Cyclist Reading Room 2300 | -9/Scraptown | Visited TADAMA 2348 | -9/Scraptown | Visited Assassins FH 2862 | -9/Scraptown | Visited Abandonware Association 2915 | -9/Scraptown | Learned abandonware demo "HACKBUD.EXE" 2915 | -9/Scraptown | Learned abandonware demo "POISON.EXE" 2983 | -9/Scraptown | Visited Research Penetration Think Tank 3044 | -9/Scraptown | Visited Chapter 10 3164 | -9/Scraptown | Found Scrap Suit 3233 | -9/Scraptown | Attacked by Scraptown defenders 3316 | -9/Scraptown | Core integrity fell below 50% 3347 | -9/Scraptown | Core integrity fell below 20% 3353 | -9/Scraptown | Destroyed by 40-KHG(E) with Barrage Gun Last Messages --------------- Critical hit (Destroy). Hvy. Assault Rifle destroyed. Plasma Cannon destroyed. Supplies damaged. Visual Processing Unit destroyed. P4-A72(E) IFF system glitched. P4-A72(E) destroyed. 3D-H26(E) destroyed. Critical hit (Destroy). Ion Engine destroyed. ANNOUNCEMENT: Triborg tracking relay activated. Stay clear or you only have yourself to blame! NL-DL2(E) heat damages Mak. Light Armor Plating. NL-DL2(E) heat spikes uncontrollably. Aluminum Leg destroyed. Critical hit (Destroy). Aluminum Leg destroyed. EM Pulse Gun destroyed. Phase Cannon destroyed. [Achievement: First Step to Greatness] Map ----- +----------------------------------------------------+ | | | | | | | | | | | | | | | | | | | ?????????????????????????????????????????????????? | | ?????????????????????????????????????????????????? | | ?????????????????????????????????????????????????? | | ?????????????????????????????????????????????????? | | ?????????????????????????????????????????????????? | | ?????????????????????????????????????????????????? | | ?????????????????????????????????????????????????? | | ?????????????????????????????????????????????????? | | ?????????????????????????????????????????????????? | | ?????????????????????????????????????????????????? | | ?????????????????????????????????????????????????? | | ?????????????????????????????????????????????????? | | ?????????????????????????????????????????????????? | | ??????????####################???####????????????? | | ??????????#" ##"""##"" ##"""#####[ ###?????? #??? | | ??????????#"" ##"" ##" ##! ;;!*!= ;##"## ##?? | | ??????????#"" @ =*%[E[[ ! #?? | | ??????????# ![=!%E[ %! #?? | | ??????????##################;####=! ;##########?? | | ????????????????????????????##??## ###??????????? | | ?????????????????????????????????# #????????????? | | ??????????????????????############ #????????????? | | #######???????????????#""""""""""# #????????????? | | """"""#???????????????# " ### #????????????? | | " " #?????###########"" ## #????????????? | | #?????#""""""""##"" ## #????????????? | | # #" #?????#"" """""##"""" ## #????????????? | | #X#" #?????#" ""##"" " ## #????????????? | | ###" #?????#" ""##"""" ## #????????????? | | """" #?????# ""##"" ## #????????????? | | #?????#" ""##" ### #????????????? | | #?????# "## # #????????????? | | #### ##?????#### ########### ##### #????????????? | | #### ########### ########### ##### ## ##????????? | | """" """"""""""" """"""""""" """"" "" "#????????? | | " "#????????? | | " "#????????? | | " "#????????? | | " "#????????? | | " ??????? | | """""""""""""""""""""""""""" "## "????? | +----------------------------------------------------+ Best States ------------- Heat Dissipation 35 Energy Generation 10 Energy Capacity 250 Matter Stores 300 Matter Capacity 300 Sight Range 18 Terrain Scan Density 10 Evasion (%) 55 Item Schematics ----------------- None Robot Schematics ------------------ None Fabricated ------------ Nothing Repaired ---------- Nothing Alien Tech Used ----------------- None Achievements -------------- First Step to Greatness Librarian Challenges ------------ None Game ------ Seed ParticleLinkedProcessor Manual? 0 Play Time 02:20:03 Cumulative 2.3 hours Start 2025.06.27 @ 21:32:10 End 2025.06.29 @ 01:39:32 Sessions 6 Manual Loads 0 Difficulty Rogue Special Mode None Game No. 1 Rogue 1 Adventurer 0 Explorer 0 Win Type - Total 0 Types 0/0/0/0/0/0/0/0/0/0 Lore% 6 Gallery% 1 Achievement% 0 Wizard Run 0 Options --------- Layout 0 ASCII 0 Keyboard 1 Movement Arrows Keybinds 0 Fullscreen 1 Font 28/SmallcapsGlow Map View 72x54 Zoom Use 0% Tactical HUD 0 Map Filters NONE Filters NONE Steam 1 RUN: 46cce250-3945-465d-8bb1-d2fba0000ecb